[Event "Titled Tuesday Blitz November 9 2021"]
[White "Kretov, Evgenij"]
[Black "Pichot, Alan"]
[WhiteFideId "4167821"]
[BlackFideId "110973"]
[WhiteElo "2303"]
[BlackElo "2600"]
[Result "0-1"]
[Round "05"]
[TimeControl "180+1"]
[Date "2021.11.09"]
[WhiteClock "0:00:17"]
[BlackClock "0:00:58"]

1. d4 {[%clk 0:02:53]}  Nf6 {[%clk 0:03:00]} 2. c4 {[%clk 0:02:53]}  e6 {[%clk 0:03:00]} 3. Nc3 {[%clk 0:02:53]}  Bb4 {[%clk 0:03:01]} 4. Bg5 {[%clk 0:02:49]}  h6 {[%clk 0:03:00]} 5. Bh4 {[%clk 0:02:49]}  b6 {[%clk 0:03:00]} 6. Qc2 {[%clk 0:02:49]}  Bb7 {[%clk 0:03:00]} 7. e3 {[%clk 0:02:49]}  g5 {[%clk 0:02:58]} 8. Bg3 {[%clk 0:02:48]}  Ne4 {[%clk 0:02:59]} 9. f3 {[%clk 0:02:47]}  Bxc3+ {[%clk 0:02:55]} 10. bxc3 {[%clk 0:02:47]}  Nxg3 {[%clk 0:02:56]} 11. hxg3 {[%clk 0:02:47]}  d6 {[%clk 0:02:57]} 12. g4 {[%clk 0:02:47]}  Nd7 {[%clk 0:02:56]} 13. Bd3 {[%clk 0:02:47]}  Qe7 {[%clk 0:02:54]} 14. Be4 {[%clk 0:02:46]}  O-O-O {[%clk 0:02:51]} 15. Kf2 {[%clk 0:02:42]}  h5 {[%clk 0:02:42]} 16. gxh5 {[%clk 0:02:40]}  f5 {[%clk 0:02:42]} 17. Bxb7+ {[%clk 0:02:40]}  Kxb7 {[%clk 0:02:43]} 18. Ne2 {[%clk 0:02:36]}  Rdf8 {[%clk 0:02:40]} 19. a4 {[%clk 0:02:28]}  a5 {[%clk 0:02:40]} 20. Rab1 {[%clk 0:02:26]}  e5 {[%clk 0:02:36]} 21. Ng3 {[%clk 0:02:21]}  Qf7 {[%clk 0:02:29]} 22. e4 {[%clk 0:02:18]}  Qxc4 {[%clk 0:02:18]} 23. Nxf5 {[%clk 0:02:15]}  exd4 {[%clk 0:02:18]} 24. Nxd4 {[%clk 0:02:13]}  Ne5 {[%clk 0:02:17]} 25. Qb3 {[%clk 0:02:06]}  Qd3 {[%clk 0:01:38]} 26. Qd5+ {[%clk 0:01:30]}  Kc8 {[%clk 0:01:37]} 27. Ne2 {[%clk 0:01:04]}  Rxf3+ {[%clk 0:01:31]} 28. gxf3 {[%clk 0:00:54]}  Qxf3+ {[%clk 0:01:31]} 29. Kg1 {[%clk 0:00:54]}  Qxe2 {[%clk 0:01:27]} 30. Rf1 {[%clk 0:00:45]}  Kb8 {[%clk 0:01:08]} 31. Qe6 {[%clk 0:00:39]}  g4 {[%clk 0:01:03]} 32. Qf6 {[%clk 0:00:26]}  Nf3+ {[%clk 0:00:58]} 33. Rxf3 {[%clk 0:00:25]}  gxf3 {[%clk 0:00:58]} 34. Qxh8+ {[%clk 0:00:25]}  Kb7 {[%clk 0:00:58]} 35. Rh2 {[%clk 0:00:17]}  Qe1# {[%clk 0:00:58]} 0-1


[Site "https://www.chess.com"]

[Event "Titled Tuesday Blitz November 9 2021"]
[White "Llorente Zaro, Alfonso"]
[Black "Zubov, Alexander"]
[WhiteFideId "2254131"]
[BlackFideId "14109409"]
[WhiteElo "2480"]
[BlackElo "2685"]
[Result "0-1"]
[Round "05"]
[TimeControl "180+1"]
[Date "2021.11.09"]
[WhiteClock "0:00:01"]
[BlackClock "0:00:12"]

1. b3 {[%clk 0:02:58]}  d5 {[%clk 0:02:57]} 2. e3 {[%clk 0:02:57]}  e5 {[%clk 0:02:53]} 3. Bb2 {[%clk 0:02:54]}  Bd6 {[%clk 0:02:52]} 4. Nf3 {[%clk 0:02:53]}  Nd7 {[%clk 0:02:41]} 5. c4 {[%clk 0:02:53]}  dxc4 {[%clk 0:02:28]} 6. bxc4 {[%clk 0:02:43]}  Ngf6 {[%clk 0:02:26]} 7. Nc3 {[%clk 0:02:43]}  a6 {[%clk 0:02:11]} 8. d4 {[%clk 0:02:34]}  b6 {[%clk 0:02:02]} 9. Be2 {[%clk 0:01:31]}  Bb7 {[%clk 0:02:00]} 10. O-O {[%clk 0:01:32]}  O-O {[%clk 0:01:59]} 11. a4 {[%clk 0:01:31]}  exd4 {[%clk 0:01:46]} 12. exd4 {[%clk 0:01:28]}  Re8 {[%clk 0:01:35]} 13. a5 {[%clk 0:01:27]}  Bb4 {[%clk 0:01:34]} 14. axb6 {[%clk 0:01:26]}  cxb6 {[%clk 0:01:35]} 15. Qb3 {[%clk 0:01:23]}  Bxc3 {[%clk 0:01:33]} 16. Bxc3 {[%clk 0:01:15]}  Rxe2 {[%clk 0:01:32]} 17. Ne5 {[%clk 0:01:14]}  Nxe5 {[%clk 0:01:26]} 18. dxe5 {[%clk 0:01:15]}  Ne4 {[%clk 0:01:24]} 19. Rad1 {[%clk 0:01:08]}  Qc7 {[%clk 0:01:12]} 20. Bd4 {[%clk 0:01:07]}  Nc5 {[%clk 0:00:48]} 21. Qg3 {[%clk 0:01:06]}  Ne6 {[%clk 0:00:43]} 22. Be3 {[%clk 0:01:06]}  Qxc4 {[%clk 0:00:39]} 23. Rc1 {[%clk 0:01:02]}  Qe4 {[%clk 0:00:38]} 24. Rfd1 {[%clk 0:00:59]}  h5 {[%clk 0:00:25]} 25. h4 {[%clk 0:00:54]}  b5 {[%clk 0:00:21]} 26. Rd7 {[%clk 0:00:54]}  Bc6 {[%clk 0:00:21]} 27. Rd6 {[%clk 0:00:53]}  Bd5 {[%clk 0:00:20]} 28. Kh2 {[%clk 0:00:47]}  b4 {[%clk 0:00:19]} 29. Bh6 {[%clk 0:00:47]}  Qg4 {[%clk 0:00:18]} 30. Qxg4 {[%clk 0:00:35]}  hxg4 {[%clk 0:00:18]} 31. Be3 {[%clk 0:00:36]}  Be4 {[%clk 0:00:17]} 32. Rc4 {[%clk 0:00:35]}  Bf5 {[%clk 0:00:12]} 33. Rxb4 {[%clk 0:00:35]}  g6 {[%clk 0:00:11]} 34. Ra4 {[%clk 0:00:32]}  a5 {[%clk 0:00:12]} 35. Rd5 {[%clk 0:00:30]}  Kg7 {[%clk 0:00:09]} 36. Rdxa5 {[%clk 0:00:28]}  Rxa5 {[%clk 0:00:10]} 37. Rxa5 {[%clk 0:00:28]}  Rc2 {[%clk 0:00:10]} 38. Kg3 {[%clk 0:00:28]}  Rc4 {[%clk 0:00:10]} 39. Rb5 {[%clk 0:00:27]}  Re4 {[%clk 0:00:11]} 40. Ra5 {[%clk 0:00:27]}  Nd4 {[%clk 0:00:11]} 41. Bg5 {[%clk 0:00:25]}  Ne2+ {[%clk 0:00:08]} 42. Kh2 {[%clk 0:00:25]}  g3+ {[%clk 0:00:08]} 43. fxg3 {[%clk 0:00:25]}  Rc4 {[%clk 0:00:03]} 44. Bf6+ {[%clk 0:00:20]}  Kh6 {[%clk 0:00:03]} 45. Ra7 {[%clk 0:00:17]}  Be6 {[%clk 0:00:03]} 46. g4 {[%clk 0:00:14]}  g5 {[%clk 0:00:02]} 47. Bxg5+ {[%clk 0:00:14]}  Kg6 {[%clk 0:00:02]} 48. Ra8 {[%clk 0:00:13]}  Bxg4 {[%clk 0:00:02]} 49. Bf6 {[%clk 0:00:12]}  Kf5 {[%clk 0:00:02]} 50. Rg8 {[%clk 0:00:13]}  Ke6 {[%clk 0:00:02]} 51. Re8+ {[%clk 0:00:12]}  Kf5 {[%clk 0:00:02]} 52. Rg8 {[%clk 0:00:11]}  Nc1 {[%clk 0:00:02]} 53. Rg5+ {[%clk 0:00:11]}  Ke6 {[%clk 0:00:02]} 54. Rg7 {[%clk 0:00:10]}  Bf5 {[%clk 0:00:03]} 55. Rg5 {[%clk 0:00:10]}  Nd3 {[%clk 0:00:03]} 56. h5 {[%clk 0:00:09]}  Rg4 {[%clk 0:00:04]} 57. Rxg4 {[%clk 0:00:06]}  Bxg4 {[%clk 0:00:04]} 58. h6 {[%clk 0:00:07]}  Bf5 {[%clk 0:00:05]} 59. Kg3 {[%clk 0:00:06]}  Nxe5 {[%clk 0:00:06]} 60. Bg7 {[%clk 0:00:07]}  Bh7 {[%clk 0:00:05]} 61. Kf4 {[%clk 0:00:06]}  Nd3+ {[%clk 0:00:06]} 62. Kg5 {[%clk 0:00:07]}  Ne1 {[%clk 0:00:06]} 63. g4 {[%clk 0:00:06]}  Nf3+ {[%clk 0:00:07]} 64. Kf4 {[%clk 0:00:06]}  Nd2 {[%clk 0:00:07]} 65. Kg5 {[%clk 0:00:07]}  Ne4+ {[%clk 0:00:08]} 66. Kf4 {[%clk 0:00:07]}  Nc5 {[%clk 0:00:08]} 67. g5 {[%clk 0:00:06]}  Nd7 {[%clk 0:00:09]} 68. Bh8 {[%clk 0:00:07]}  Nb6 {[%clk 0:00:09]} 69. Bg7 {[%clk 0:00:07]}  Nd5+ {[%clk 0:00:09]} 70. Kg4 {[%clk 0:00:08]}  Bg6 {[%clk 0:00:10]} 71. Bh8 {[%clk 0:00:08]}  Kd6 {[%clk 0:00:10]} 72. Bg7 {[%clk 0:00:09]}  Kc5 {[%clk 0:00:11]} 73. Bh8 {[%clk 0:00:09]}  Kc4 {[%clk 0:00:11]} 74. Kf3 {[%clk 0:00:09]}  Kd3 {[%clk 0:00:11]} 75. Bg7 {[%clk 0:00:09]}  Nc7 {[%clk 0:00:12]} 76. Kf4 {[%clk 0:00:08]}  Ne6+ {[%clk 0:00:12]} 77. Ke5 {[%clk 0:00:09]}  Nxg5 {[%clk 0:00:13]} 78. Kf6 {[%clk 0:00:06]}  Nh7+ {[%clk 0:00:13]} 79. Ke7 {[%clk 0:00:06]}  Ke4 {[%clk 0:00:14]} 80. Bf6 {[%clk 0:00:05]}  Kf5 {[%clk 0:00:13]} 81. Bh4 {[%clk 0:00:05]}  Kg4 {[%clk 0:00:13]} 82. Bf6 {[%clk 0:00:04]}  Kh5 {[%clk 0:00:12]} 83. Bg7 {[%clk 0:00:05]}  f5 {[%clk 0:00:11]} 84. Kd6 {[%clk 0:00:04]}  f4 {[%clk 0:00:11]} 85. Kc5 {[%clk 0:00:04]}  f3 {[%clk 0:00:11]} 86. Bd4 {[%clk 0:00:04]}  Kxh6 {[%clk 0:00:12]} 87. Bf2 {[%clk 0:00:04]}  Kg5 {[%clk 0:00:12]} 88. Kd4 {[%clk 0:00:05]}  Kf4 {[%clk 0:00:13]} 89. Be3+ {[%clk 0:00:04]}  Kg3 {[%clk 0:00:13]} 90. Ke5 {[%clk 0:00:03]}  Bb1 {[%clk 0:00:12]} 91. Bf4+ {[%clk 0:00:02]}  Kg2 {[%clk 0:00:12]} 92. Be3 {[%clk 0:00:02]}  Ng5 {[%clk 0:00:12]} 93. Ba7 {[%clk 0:00:02]}  Ne4 {[%clk 0:00:12]} 94. Kf4 {[%clk 0:00:02]}  Nc3 {[%clk 0:00:12]} 95. Bb6 {[%clk 0:00:01]}  Nd5+ {[%clk 0:00:12]} 0-1


[Site "https://www.chess.com"]

[Event "Titled Tuesday Blitz November 9 2021"]
[White "Madaminov, Mukhiddin"]
[Black "Ahmadzada, Ahmad"]
[WhiteFideId "14210703"]
[BlackFideId "13413007"]
[WhiteElo "1855"]
[BlackElo "2226"]
[Result "1-0"]
[Round "05"]
[TimeControl "180+1"]
[Date "2021.11.09"]
[WhiteClock "0:00:28"]
[BlackClock "0:00:01"]

1. e4 {[%clk 0:03:00]}  c5 {[%clk 0:02:59]} 2. Nf3 {[%clk 0:02:55]}  e6 {[%clk 0:03:00]} 3. d4 {[%clk 0:02:54]}  cxd4 {[%clk 0:03:00]} 4. Nxd4 {[%clk 0:02:55]}  Nf6 {[%clk 0:03:01]} 5. Nc3 {[%clk 0:02:42]}  d6 {[%clk 0:03:01]} 6. g4 {[%clk 0:01:57]}  a6 {[%clk 0:03:01]} 7. g5 {[%clk 0:01:56]}  Nfd7 {[%clk 0:03:01]} 8. Rg1 {[%clk 0:01:54]}  b5 {[%clk 0:02:59]} 9. h4 {[%clk 0:01:44]}  Bb7 {[%clk 0:02:58]} 10. a3 {[%clk 0:01:43]}  Nc6 {[%clk 0:02:57]} 11. Be3 {[%clk 0:01:40]}  Rc8 {[%clk 0:02:28]} 12. Qe2 {[%clk 0:01:38]}  Nce5 {[%clk 0:02:23]} 13. Qd2 {[%clk 0:01:19]}  Nc4 {[%clk 0:02:10]} 14. Bxc4 {[%clk 0:01:18]}  Rxc4 {[%clk 0:02:10]} 15. h5 {[%clk 0:01:15]}  Ne5 {[%clk 0:02:07]} 16. O-O-O {[%clk 0:01:09]}  Rc8 {[%clk 0:01:36]} 17. g6 {[%clk 0:01:08]}  Nc4 {[%clk 0:01:11]} 18. gxf7+ {[%clk 0:01:02]}  Kxf7 {[%clk 0:01:12]} 19. Qe2 {[%clk 0:01:02]}  Qa5 {[%clk 0:00:58]} 20. Qg4 {[%clk 0:00:55]}  Re8 {[%clk 0:00:48]} 21. Rg3 {[%clk 0:00:50]}  b4 {[%clk 0:00:31]} 22. Rf3+ {[%clk 0:00:39]}  Kg8 {[%clk 0:00:27]} 23. Nxe6 {[%clk 0:00:38]}  g6 {[%clk 0:00:05]} 24. hxg6 {[%clk 0:00:35]}  h5 {[%clk 0:00:03]} 25. g7 {[%clk 0:00:28]}  hxg4 {[%clk 0:00:02]} 26. Rxf8+ {[%clk 0:00:29]}  Kh7 {[%clk 0:00:01]} 27. gxh8=Q+ {[%clk 0:00:28]} 1-0


[Site "https://www.chess.com"]

[Event "Titled Tuesday Blitz November 9 2021"]
[White "Manafov, Vugar"]
[Black "Jobava, Baadur"]
[WhiteFideId "13410814"]
[BlackFideId "13601520"]
[WhiteElo "2277"]
[BlackElo "2731"]
[Result "1/2-1/2"]
[Round "05"]
[TimeControl "180+1"]
[Date "2021.11.09"]
[WhiteClock "0:03:03"]
[BlackClock "0:02:55"]

1. d4 {[%clk 0:03:00]}  Nf6 {[%clk 0:02:57]} 2. c4 {[%clk 0:03:00]}  c5 {[%clk 0:02:57]} 3. d5 {[%clk 0:03:01]}  e6 {[%clk 0:02:57]} 4. Nc3 {[%clk 0:03:01]}  exd5 {[%clk 0:02:58]} 5. cxd5 {[%clk 0:03:02]}  d6 {[%clk 0:02:59]} 6. Nf3 {[%clk 0:03:03]}  g6 {[%clk 0:02:59]} 7. Bf4 {[%clk 0:03:03]}  Bg7 {[%clk 0:02:59]} 8. Qa4+ {[%clk 0:03:03]}  Bd7 {[%clk 0:02:56]} 9. Qb3 {[%clk 0:03:03]}  Bc8 {[%clk 0:02:56]} 10. Qa4+ {[%clk 0:03:02]}  Bd7 {[%clk 0:02:56]} 11. Qb3 {[%clk 0:03:03]}  Bc8 {[%clk 0:02:55]} 12. Qa4+ {[%clk 0:03:03]} 1/2-1/2


[Site "https://www.chess.com"]

[Event "Titled Tuesday Blitz November 9 2021"]
[White "Matinian, Nikita"]
[Black "Bok, Benjamin"]
[WhiteFideId "24129100"]
[BlackFideId "1017063"]
[WhiteElo "2422"]
[BlackElo "2658"]
[Result "0-1"]
[Round "05"]
[TimeControl "180+1"]
[Date "2021.11.09"]
[WhiteClock "0:00:03"]
[BlackClock "0:00:08"]

1. e4 {[%clk 0:03:00]}  c5 {[%clk 0:02:59]} 2. Nf3 {[%clk 0:03:00]}  d6 {[%clk 0:02:59]} 3. Bb5+ {[%clk 0:03:01]}  Nd7 {[%clk 0:02:59]} 4. d4 {[%clk 0:03:00]}  cxd4 {[%clk 0:02:59]} 5. Qxd4 {[%clk 0:02:59]}  a6 {[%clk 0:03:00]} 6. Bxd7+ {[%clk 0:02:59]}  Bxd7 {[%clk 0:03:01]} 7. Nc3 {[%clk 0:02:58]}  Nf6 {[%clk 0:03:01]} 8. Bg5 {[%clk 0:02:59]}  h6 {[%clk 0:02:51]} 9. Bxf6 {[%clk 0:02:58]}  gxf6 {[%clk 0:02:52]} 10. O-O-O {[%clk 0:02:59]}  e6 {[%clk 0:02:49]} 11. Rhe1 {[%clk 0:02:58]}  b5 {[%clk 0:02:47]} 12. Kb1 {[%clk 0:02:57]}  Be7 {[%clk 0:02:38]} 13. Nd5 {[%clk 0:02:51]}  exd5 {[%clk 0:02:32]} 14. exd5 {[%clk 0:02:52]}  O-O {[%clk 0:02:14]} 15. Qf4 {[%clk 0:01:53]}  Re8 {[%clk 0:02:13]} 16. Qxh6 {[%clk 0:01:49]}  Bf8 {[%clk 0:02:13]} 17. Qf4 {[%clk 0:01:49]}  Bg7 {[%clk 0:02:03]} 18. Qxd6 {[%clk 0:01:43]}  Rxe1 {[%clk 0:01:55]} 19. Rxe1 {[%clk 0:01:44]}  Bf5 {[%clk 0:01:54]} 20. Qc6 {[%clk 0:00:54]}  Rc8 {[%clk 0:01:51]} 21. Qxa6 {[%clk 0:00:54]}  Qxd5 {[%clk 0:01:46]} 22. a3 {[%clk 0:00:30]}  Bxc2+ {[%clk 0:01:23]} 23. Ka1 {[%clk 0:00:30]}  Ra8 {[%clk 0:01:22]} 24. Qb6 {[%clk 0:00:27]}  f5 {[%clk 0:00:52]} 25. Qe3 {[%clk 0:00:27]}  b4 {[%clk 0:00:50]} 26. Ne5 {[%clk 0:00:27]}  bxa3 {[%clk 0:00:48]} 27. bxa3 {[%clk 0:00:23]}  f4 {[%clk 0:00:14]} 28. Qc3 {[%clk 0:00:22]}  Bxe5 {[%clk 0:00:12]} 29. Qxe5 {[%clk 0:00:19]}  Rxa3+ {[%clk 0:00:12]} 30. Kb2 {[%clk 0:00:20]}  Ra2+ {[%clk 0:00:10]} 31. Kc1 {[%clk 0:00:13]}  Qxe5 {[%clk 0:00:10]} 32. Rxe5 {[%clk 0:00:13]}  Bg6 {[%clk 0:00:11]} 33. h4 {[%clk 0:00:06]}  Rxf2 {[%clk 0:00:10]} 34. Rg5 {[%clk 0:00:07]}  Kf8 {[%clk 0:00:09]} 35. h5 {[%clk 0:00:07]}  Be4 {[%clk 0:00:09]} 36. h6 {[%clk 0:00:06]}  f6 {[%clk 0:00:07]} 37. Rg4 {[%clk 0:00:06]}  Kf7 {[%clk 0:00:07]} 38. g3 {[%clk 0:00:04]}  fxg3 {[%clk 0:00:06]} 39. Rxe4 {[%clk 0:00:03]}  g2 {[%clk 0:00:06]} 40. Rg4 {[%clk 0:00:02]}  Rf1+ {[%clk 0:00:06]} 41. Kd2 {[%clk 0:00:03]}  g1=Q {[%clk 0:00:07]} 42. Rxg1 {[%clk 0:00:03]}  Rxg1 {[%clk 0:00:08]} 0-1


[Site "https://www.chess.com"]

[Event "Titled Tuesday Blitz November 9 2021"]
[White "Mustafayev, Farid"]
[Black "Grischuk, Alexander"]
[WhiteFideId "13408771"]
[BlackFideId "4126025"]
[WhiteElo "2091"]
[BlackElo "2757"]
[Result "0-1"]
[Round "05"]
[TimeControl "180+1"]
[Date "2021.11.09"]
[WhiteClock "0:00:08"]
[BlackClock "0:00:21"]

1. d4 {[%clk 0:03:00]}  Nf6 {[%clk 0:02:56]} 2. c4 {[%clk 0:03:00]}  e6 {[%clk 0:02:57]} 3. Nc3 {[%clk 0:03:00]}  Bb4 {[%clk 0:02:56]} 4. e3 {[%clk 0:03:01]}  b6 {[%clk 0:02:54]} 5. Bd3 {[%clk 0:03:01]}  Bb7 {[%clk 0:02:53]} 6. f3 {[%clk 0:03:01]}  c5 {[%clk 0:02:50]} 7. Ne2 {[%clk 0:03:01]}  cxd4 {[%clk 0:02:50]} 8. exd4 {[%clk 0:03:01]}  d5 {[%clk 0:02:47]} 9. cxd5 {[%clk 0:03:01]}  Nxd5 {[%clk 0:02:47]} 10. O-O {[%clk 0:03:02]}  O-O {[%clk 0:02:45]} 11. Bc2 {[%clk 0:02:59]}  Nd7 {[%clk 0:01:57]} 12. Qd3 {[%clk 0:02:54]}  N5f6 {[%clk 0:01:57]} 13. Bf4 {[%clk 0:02:38]}  Be7 {[%clk 0:01:52]} 14. Rfe1 {[%clk 0:02:04]}  Rc8 {[%clk 0:01:50]} 15. Rac1 {[%clk 0:02:01]}  Re8 {[%clk 0:01:50]} 16. Bb1 {[%clk 0:01:58]}  Nf8 {[%clk 0:01:49]} 17. Be5 {[%clk 0:01:35]}  Ng6 {[%clk 0:01:49]} 18. Nf4 {[%clk 0:01:26]}  Nxe5 {[%clk 0:01:44]} 19. Rxe5 {[%clk 0:01:23]}  Bd6 {[%clk 0:01:32]} 20. Rce1 {[%clk 0:00:53]}  Bxe5 {[%clk 0:01:30]} 21. Rxe5 {[%clk 0:00:54]}  g6 {[%clk 0:01:18]} 22. h4 {[%clk 0:00:49]}  Qd6 {[%clk 0:01:16]} 23. Nce2 {[%clk 0:00:43]}  Red8 {[%clk 0:01:06]} 24. Rg5 {[%clk 0:00:40]}  e5 {[%clk 0:00:51]} 25. Nh3 {[%clk 0:00:23]}  e4 {[%clk 0:00:48]} 26. fxe4 {[%clk 0:00:18]}  Bxe4 {[%clk 0:00:47]} 27. Qd1 {[%clk 0:00:17]}  Re8 {[%clk 0:00:36]} 28. Nhf4 {[%clk 0:00:16]}  Bxb1 {[%clk 0:00:35]} 29. Qxb1 {[%clk 0:00:17]}  Ne4 {[%clk 0:00:34]} 30. Rd5 {[%clk 0:00:16]}  Qf6 {[%clk 0:00:34]} 31. h5 {[%clk 0:00:14]}  Qh4 {[%clk 0:00:32]} 32. hxg6 {[%clk 0:00:14]}  Qf2+ {[%clk 0:00:30]} 33. Kh2 {[%clk 0:00:12]}  hxg6 {[%clk 0:00:30]} 34. Re5 {[%clk 0:00:09]}  Rxe5 {[%clk 0:00:28]} 35. dxe5 {[%clk 0:00:10]}  Qh4+ {[%clk 0:00:24]} 36. Kg1 {[%clk 0:00:08]}  Ng3 {[%clk 0:00:23]} 37. Qd3 {[%clk 0:00:07]}  Nxe2+ {[%clk 0:00:21]} 38. Nxe2 {[%clk 0:00:08]}  Qc4 {[%clk 0:00:21]} 39. Qe3 {[%clk 0:00:08]}  Qc5 {[%clk 0:00:21]} 40. Nd4 {[%clk 0:00:08]}  Re8 {[%clk 0:00:21]} 0-1


[Site "https://www.chess.com"]

[Event "Titled Tuesday Blitz November 9 2021"]
[White "Obregon, Andres Carlos"]
[Black "Hakobyan, Aram"]
[WhiteFideId "111724"]
[BlackFideId "13306677"]
[WhiteElo "2572"]
[BlackElo "2557"]
[Result "1-0"]
[Round "05"]
[TimeControl "180+1"]
[Date "2021.11.09"]
[WhiteClock "0:00:09"]
[BlackClock "0:00:05"]

1. c4 {[%clk 0:03:00]}  Nf6 {[%clk 0:02:59]} 2. Nf3 {[%clk 0:02:54]}  e6 {[%clk 0:02:57]} 3. g3 {[%clk 0:02:49]}  d5 {[%clk 0:02:58]} 4. Bg2 {[%clk 0:02:39]}  Be7 {[%clk 0:02:59]} 5. O-O {[%clk 0:02:33]}  O-O {[%clk 0:02:59]} 6. b3 {[%clk 0:02:31]}  c5 {[%clk 0:02:55]} 7. Bb2 {[%clk 0:02:29]}  d4 {[%clk 0:02:55]} 8. e3 {[%clk 0:02:26]}  Nc6 {[%clk 0:02:53]} 9. exd4 {[%clk 0:02:25]}  cxd4 {[%clk 0:02:54]} 10. Re1 {[%clk 0:02:22]}  Bc5 {[%clk 0:02:40]} 11. d3 {[%clk 0:02:19]}  Qc7 {[%clk 0:02:31]} 12. Ba3 {[%clk 0:02:16]}  b6 {[%clk 0:02:25]} 13. Ne5 {[%clk 0:02:13]}  Bb7 {[%clk 0:02:21]} 14. Nxc6 {[%clk 0:02:12]}  Bxc6 {[%clk 0:02:22]} 15. Bxc6 {[%clk 0:02:13]}  Qxc6 {[%clk 0:02:21]} 16. b4 {[%clk 0:02:12]}  Be7 {[%clk 0:02:20]} 17. b5 {[%clk 0:02:09]}  Qb7 {[%clk 0:02:19]} 18. Bxe7 {[%clk 0:02:06]}  Qxe7 {[%clk 0:02:19]} 19. Nd2 {[%clk 0:02:06]}  Rfd8 {[%clk 0:02:00]} 20. Nf3 {[%clk 0:02:04]}  Rd6 {[%clk 0:01:30]} 21. Ne5 {[%clk 0:02:01]}  Nd7 {[%clk 0:01:30]} 22. Qf3 {[%clk 0:01:53]}  Rf8 {[%clk 0:01:16]} 23. Nc6 {[%clk 0:01:52]}  Qf6 {[%clk 0:01:13]} 24. Qe4 {[%clk 0:01:27]}  Nc5 {[%clk 0:01:07]} 25. Qe2 {[%clk 0:01:27]}  a5 {[%clk 0:01:05]} 26. f4 {[%clk 0:01:22]}  Re8 {[%clk 0:01:00]} 27. Qf3 {[%clk 0:01:20]}  h6 {[%clk 0:00:43]} 28. Kg2 {[%clk 0:01:19]}  Qg6 {[%clk 0:00:39]} 29. Rad1 {[%clk 0:01:17]}  Qf6 {[%clk 0:00:29]} 30. Re5 {[%clk 0:01:15]}  Nd7 {[%clk 0:00:28]} 31. Re2 {[%clk 0:01:07]}  Nc5 {[%clk 0:00:29]} 32. Rde1 {[%clk 0:01:06]}  Qf5 {[%clk 0:00:26]} 33. Rd2 {[%clk 0:01:05]}  Qf6 {[%clk 0:00:23]} 34. h4 {[%clk 0:01:05]}  Rc8 {[%clk 0:00:20]} 35. Ne5 {[%clk 0:01:03]}  Rdd8 {[%clk 0:00:18]} 36. Qf2 {[%clk 0:00:59]}  Rc7 {[%clk 0:00:18]} 37. g4 {[%clk 0:00:58]}  h5 {[%clk 0:00:11]} 38. gxh5 {[%clk 0:00:56]}  Qf5 {[%clk 0:00:12]} 39. Qf3 {[%clk 0:00:56]}  f6 {[%clk 0:00:11]} 40. Nc6 {[%clk 0:00:52]}  Rdd7 {[%clk 0:00:11]} 41. Kh2 {[%clk 0:00:50]}  Kf7 {[%clk 0:00:09]} 42. Qg3 {[%clk 0:00:45]}  Rc8 {[%clk 0:00:09]} 43. Rg1 {[%clk 0:00:44]}  Rg8 {[%clk 0:00:09]} 44. Qg6+ {[%clk 0:00:43]}  Qxg6 {[%clk 0:00:09]} 45. hxg6+ {[%clk 0:00:44]}  Ke8 {[%clk 0:00:07]} 46. Re1 {[%clk 0:00:41]}  Rh8 {[%clk 0:00:08]} 47. Kg3 {[%clk 0:00:41]}  Rh6 {[%clk 0:00:09]} 48. f5 {[%clk 0:00:41]}  e5 {[%clk 0:00:09]} 49. Kg4 {[%clk 0:00:38]}  Rd6 {[%clk 0:00:09]} 50. h5 {[%clk 0:00:34]}  Kd7 {[%clk 0:00:09]} 51. Red1 {[%clk 0:00:26]}  Kc7 {[%clk 0:00:09]} 52. Re1 {[%clk 0:00:26]}  Kd7 {[%clk 0:00:08]} 53. Rh1 {[%clk 0:00:26]}  Ke8 {[%clk 0:00:07]} 54. Kf3 {[%clk 0:00:26]}  Rd7 {[%clk 0:00:06]} 55. Ke2 {[%clk 0:00:25]}  Rc7 {[%clk 0:00:06]} 56. Kf3 {[%clk 0:00:23]}  Kd7 {[%clk 0:00:06]} 57. Kg4 {[%clk 0:00:22]}  Rc8 {[%clk 0:00:06]} 58. Rh3 {[%clk 0:00:21]}  Rch8 {[%clk 0:00:07]} 59. Re2 {[%clk 0:00:21]}  Kd6 {[%clk 0:00:08]} 60. Re1 {[%clk 0:00:18]}  Na4 {[%clk 0:00:08]} 61. Re2 {[%clk 0:00:14]}  Nc3 {[%clk 0:00:08]} 62. Re1 {[%clk 0:00:14]}  Nxa2 {[%clk 0:00:08]} 63. Nxd4 {[%clk 0:00:11]}  exd4 {[%clk 0:00:07]} 64. Re6+ {[%clk 0:00:11]}  Kc5 {[%clk 0:00:06]} 65. Rc6+ {[%clk 0:00:11]}  Kb4 {[%clk 0:00:06]} 66. Rxb6 {[%clk 0:00:11]}  Nc1 {[%clk 0:00:06]} 67. Rb7 {[%clk 0:00:11]}  a4 {[%clk 0:00:04]} 68. Rxg7 {[%clk 0:00:11]}  a3 {[%clk 0:00:05]} 69. Ra7 {[%clk 0:00:12]}  a2 {[%clk 0:00:04]} 70. b6 {[%clk 0:00:12]}  Rb8 {[%clk 0:00:04]} 71. b7 {[%clk 0:00:12]}  Kc3 {[%clk 0:00:04]} 72. c5 {[%clk 0:00:12]}  Rxb7 {[%clk 0:00:04]} 73. Ra3+ {[%clk 0:00:11]}  Rb3 {[%clk 0:00:04]} 74. Ra8 {[%clk 0:00:11]}  Rb1 {[%clk 0:00:02]} 75. g7 {[%clk 0:00:11]}  a1=Q {[%clk 0:00:02]} 76. Rxa1 {[%clk 0:00:10]}  Rxa1 {[%clk 0:00:03]} 77. g8=Q {[%clk 0:00:11]}  Nb3 {[%clk 0:00:03]} 78. Qc4+ {[%clk 0:00:11]}  Kb2 {[%clk 0:00:04]} 79. Rh2+ {[%clk 0:00:11]}  Ka3 {[%clk 0:00:04]} 80. Qa6+ {[%clk 0:00:10]}  Kb4 {[%clk 0:00:04]} 81. Qc4+ {[%clk 0:00:10]}  Ka3 {[%clk 0:00:05]} 82. c6 {[%clk 0:00:10]}  Rg1+ {[%clk 0:00:06]} 83. Kf3 {[%clk 0:00:09]}  Rc1 {[%clk 0:00:07]} 84. Qb5 {[%clk 0:00:08]}  Rc5 {[%clk 0:00:06]} 85. Qb6 {[%clk 0:00:07]}  Rxf5+ {[%clk 0:00:06]} 86. Ke4 {[%clk 0:00:07]}  Re5+ {[%clk 0:00:06]} 87. Kf4 {[%clk 0:00:08]}  Rc5 {[%clk 0:00:03]} 88. c7 {[%clk 0:00:08]}  Rh7 {[%clk 0:00:03]} 89. Qa6+ {[%clk 0:00:06]}  Kb4 {[%clk 0:00:03]} 90. c8=Q {[%clk 0:00:06]}  Rxc8 {[%clk 0:00:02]} 91. Qxc8 {[%clk 0:00:07]}  Re7 {[%clk 0:00:01]} 92. Rb2 {[%clk 0:00:05]}  Re5 {[%clk 0:00:02]} 93. Qb8+ {[%clk 0:00:04]}  Rb5 {[%clk 0:00:03]} 94. Rxb3+ {[%clk 0:00:04]}  Kxb3 {[%clk 0:00:03]} 95. Qxb5+ {[%clk 0:00:05]}  Kc3 {[%clk 0:00:03]} 96. Qc4+ {[%clk 0:00:06]}  Kd2 {[%clk 0:00:04]} 97. Qxd4 {[%clk 0:00:07]}  f5 {[%clk 0:00:04]} 98. Qf6 {[%clk 0:00:08]}  Ke2 {[%clk 0:00:04]} 99. Qxf5 {[%clk 0:00:09]}  Kf2 {[%clk 0:00:05]} 100. Qe4 {[%clk 0:00:09]}  Kg1 {[%clk 0:00:05]} 101. Qe2 {[%clk 0:00:09]} 1-0


[Site "https://www.chess.com"]